bitfinex/quotes_ETHUSD_20250722
["timestamp","ask_amount","ask_price","bid_price","bid_amount"]
[1753163911070,2.71391756,3684.8,3684.1,2.71436678]
[1753163911308,2.71379091,3684.9,3684.1,3.14299962]
[1753163911517,4.43,3684.8,3684.2,0.55]
[1753163911676,4.43,3684.7,3684.2,0.55]
[1753163912077,4.43,3684.7,3684.2,0.9787]
[1753163913692,2.71385449,3684.8,3684.2,0.9787]
[1753163913893,4.425,3684.6,3684.2,0.9787]
[1753163914095,4.422,3684.5,3684.2,0.9787]
[1753163914289,2.71377721,3685.0,3684.2,0.55]
[1753163914490,4.421,3684.9,3684.4,0.55]
[1753163914818,4.421,3684.9,3684.5,0.4287]
[1753163914986,7.13478058,3684.9,3684.5,0.4287]
[1753163916083,4.42,3684.8,3684.3,0.55]
[1753163916282,2.71372225,3685.0,3684.6,0.4287]
[1753163916479,4.416,3684.9,3684.6,0.4287]
[1753163916820,4.414,3684.8,3684.2,0.9787]
[1753163917022,2.71401292,3684.6,3684.2,0.9787]
[1753163917184,4.414,3684.5,3684.0,0.55]
[1753163917386,4.414,3684.5,3684.3,0.4287]
[1753163917898,6.09186862,3685.4,3684.3,0.4287]
[1753163917899,4.412,3684.4,3684.3,0.4287]
[1753163918094,2.71377469,3685.0,3684.3,0.4287]
[1753163918419,7.12583858,3684.9,3684.3,0.4287]
[1753163918596,4.411,3684.8,3684.3,0.4287]
[1753163918985,4.411,3684.8,3684.4,0.55]
[1753163919190,4.411,3684.8,3684.5,0.4287]
[1753163920218,0.1352,3684.9,3684.5,0.4287]
[1753163920424,4.405,3684.8,3684.7,2.71389565]
[1753163920621,4.405,3684.8,3684.6,3.14269236]
[1753163920795,4.404,3684.7,3684.6,0.4287]
[1753163921000,4.404,3684.7,3684.6,0.9787]
[1753163921624,0.1352,3685.1,3684.7,0.55]
[1753163921790,4.401,3685.0,3684.8,2.71385149]
[1753163921989,4.401,3685.0,3684.9,0.4287]
[1753163923099,4.401,3685.0,3684.7,0.55]
[1753163923320,4.401,3685.0,3684.7,0.9787]
[1753163924025,4.401,3685.0,3684.8,0.4287]
[1753163924207,4.401,3685.0,3684.7,0.55]
[1753163924417,4.401,3685.0,3684.7,3.26390771]
[1753163924621,4.401,3685.0,3684.7,0.55]
[1753163925632,4.401,3685.0,3684.7,0.9787]
[1753163926133,4.401,3685.0,3684.6,4.66]
[1753163926432,4.401,3685.0,3684.6,5.0887]
[1753163926821,4.401,3685.0,3684.7,0.4287]
[1753163927333,4.401,3685.0,3684.7,3.14261685]
[1753163927830,4.401,3685.0,3684.7,0.4287]
[1753163929538,4.401,3685.0,3684.7,3.14261674]
[1753163930138,4.401,3685.0,3684.8,0.4477]
[1753163930734,0.1352,3685.1,3684.8,3.16154044]
[1753163930936,0.3784,3685.8,3685.2,2.71354301]
[1753163931109,0.1352,3685.6,3685.4,2.71340177]
[1753163931310,0.1352,3685.8,3685.5,0.4477]
[1753163931514,4.377,3685.7,3685.5,0.4477]
[1753163932041,0.1352,3685.8,3685.3,0.55]
[1753163932342,0.1352,3685.8,3685.2,0.8861]
[1753163932343,4.377,3685.7,3685.2,0.8861]
[1753163932514,4.377,3685.7,3685.1,0.4477]
[1753163932515,4.377,3685.7,3685.1,0.55]
[1753163932715,0.1352,3685.6,3685.1,0.55]
[1753163933536,4.375,3685.5,3685.2,2.71354906]
[1753163933722,4.375,3685.5,3685.3,3.16117247]
[1753163933930,4.375,3685.5,3685.3,0.4477]
[1753163934324,0.1352,3685.8,3685.3,0.4477]
[1753163934502,4.372,3685.7,3685.3,0.9977]
[1753163934701,4.372,3685.7,3685.3,0.55]
[1753163935504,4.37,3685.6,3685.3,5.6577]
[1753163935704,4.37,3685.6,3685.4,0.25377348]
[1753163935911,4.37,3685.6,3685.5,0.25377348]
[1753163936904,7.21846242,3685.6,3685.5,0.25377348]
[1753163937131,7.59686242,3685.6,3685.5,0.25377348]
[1753163937960,0.5136,3685.6,3685.5,0.25377348]
[1753163938244,4.8786,3685.6,3685.5,0.25377348]
[1753163938724,7.59186242,3685.6,3685.5,0.25377348]
[1753163942540,4.8746,3685.6,3685.5,0.25377348]
[1753163942850,3.22686242,3685.6,3685.5,0.25377348]
[1753163943146,7.58286242,3685.6,3685.5,0.25377348]
[1753163947623,10.58286242,3685.6,3685.5,0.25377348]
[1753163951348,6.22686242,3685.6,3685.5,0.25377348]
[1753163951667,10.56686242,3685.6,3685.5,0.25377348]
[1753163953239,6.22686242,3685.6,3685.5,0.25377348]
[1753163953446,2.71345462,3685.4,3684.8,0.4477]
[1753163953642,4.333,3685.3,3684.9,0.25406081]
[1753163953875,0.3784,3685.6,3685.0,0.70176081]
[1753163954173,4.332,3685.5,3685.1,0.70175389]
[1753163954419,2.71316555,3685.8,3685.0,2.71368848]
[1753163954420,0.1352,3685.3,3685.2,0.70175146]
[1753163956923,4.4612,3685.3,3685.2,0.70175146]
[1753163958803,4.4612,3685.3,3685.2,0.25405146]
[1753163959423,7.17468329,3685.3,3685.2,0.25405146]
[1753163960292,4.4612,3685.3,3685.2,0.25405146]
[1753163962035,7.17468329,3685.3,3685.2,0.25405146]
[1753163962526,0.1352,3685.3,3685.2,0.25405146]
[1753163962726,4.4522,3685.3,3685.2,0.25405146]
[1753163964426,4.4522,3685.3,3685.2,0.69625146]
[1753163965415,4.4442,3685.3,3685.2,0.69625146]
[1753163968211,4.4422,3685.3,3685.2,0.69625146]
[1753163969143,4.11664996,3685.3,3685.2,0.69625146]
[1753163972504,0.1352,3685.5,3685.2,0.69625146]
[1753163972708,4.307,3685.4,3685.3,0.69625146]
[1753163974641,4.307,3685.4,3685.3,0.25405146]
[1753163975846,7.02040967,3685.4,3685.3,0.25405146]
[1753163977047,4.307,3685.4,3685.3,0.25405146]
[1753163978249,18.807,3685.4,3685.3,0.25405146]
[1753163978429,21.52240967,3685.4,3685.3,0.25405146]
[1753163980228,21.90080967,3685.4,3685.3,0.25405146]
[1753163980549,24.90080967,3685.4,3685.3,0.25405146]
[1753163982546,2.71392514,3684.7,3684.6,0.001]
[1753163982754,7.01992514,3684.7,3684.6,0.25493643]
[1753163983935,4.306,3684.7,3684.6,0.69713643]
[1753163984918,7.01992514,3684.7,3684.6,0.25493643]
[1753163985125,4.306,3684.7,3684.6,0.25493643]
[1753163985458,4.306,3684.7,3684.6,0.25480004]
[1753163985630,14.5,3684.9,3684.6,0.69700004]
[1753163985833,4.306,3684.8,3684.7,0.25380004]
[1753163986154,7.01985491,3684.8,3684.7,0.25380004]
[1753163986755,7.01985491,3684.8,3684.7,0.69600004]
[1753163989221,21.51985491,3684.8,3684.7,0.69600004]
[1753163989422,14.5,3684.8,3684.7,0.25380004]
[1753163989622,4.4412,3684.8,3684.7,0.70140004]
[1753163990232,0.1352,3684.8,3684.7,0.70140004]
[1753163990439,4.4412,3684.8,3684.7,0.70140004]
[1753163990635,0.002,3685.4,3684.8,0.55]
[1753163990838,0.002,3686.3,3686.2,3.50612079]
[1753163991184,0.002,3686.3,3686.2,2.04470004]
[1753163991323,0.002,3686.5,3686.2,2.04470004]
[1753163991528,0.002,3686.5,3686.3,0.25380004]
[1753163991730,0.002,3686.5,3686.4,0.25380004]
[1753163993362,0.002,3686.5,3686.4,0.70140004]
[1753163993676,0.002,3686.8,3686.5,1.3408]
[1753163993879,0.002,3686.8,3686.7,4.05325287]
[1753163994087,0.002,3686.8,3686.7,4.30630561]
[1753163994241,0.002,3686.8,3686.7,4.75390561]
[1753163994444,4.305,3687.9,3687.0,2.71223216]
[1753163994644,2.71170049,3687.8,3687.0,3.4128849]
[1753163994948,4.305,3687.6,3687.0,3.9628849]
[1753163995161,4.305,3687.6,3687.0,1.25065274]
[1753163995368,4.305,3687.6,3687.0,3.9628849]
[1753163995948,4.305,3687.6,3687.0,1.25065274]
[1753163996897,0.3804,3688.2,3687.0,1.25065274]
[1753163996898,1.35237177,3690.2,3687.2,3.48958505]
[1753163997201,0.1392,3690.0,3688.7,0.55]
[1753163997360,14.5,3689.8,3688.8,0.70065274]
[1753163997546,2.71024744,3689.7,3688.9,0.25305274]
[1753163997752,3.0,3689.5,3689.0,0.25305274]
[1753163997966,3.0,3689.7,3689.1,0.25305274]
[1753163998282,3.0,3689.6,3689.2,0.25204143]
[1753163998577,4.31,3689.5,3689.3,0.25204143]
[1753163998874,7.31,3689.5,3689.4,0.25204143]
[1753163999284,10.02039436,3689.5,3689.4,0.25204143]
[1753163999801,0.002,3690.0,3689.5,0.55]
[1753164000083,0.002,3690.0,3689.9,3.26010054]
[1753164000268,0.002,3690.0,3689.9,4.35304297]
[1753164000456,0.002,3690.0,3689.9,9.11964297]
[1753164000663,0.002,3690.0,3689.9,12.09254197]
[1753164001182,0.002,3690.0,3689.9,12.22774197]
[1753164001348,0.002,3690.0,3689.9,9.42861321]
[1753164001551,0.002,3690.0,3689.9,13.74439135]
[1753164001778,0.002,3690.0,3689.9,13.74339135]
[1753164002085,1e-08,3690.4,3690.3,7.06460679]
[1753164002285,1e-08,3690.4,3690.3,8.59287839]
[1753164002584,1e-08,3690.4,3690.3,13.36047839]
[1753164002789,1e-08,3690.4,3690.3,13.35947839]
[1753164002960,1e-08,3690.5,3690.4,7.05143336]
[1753164003283,1e-08,3690.5,3690.4,7.74985293]
[1753164003486,1e-08,3690.5,3690.4,10.37738686]
[1753164004383,1e-08,3690.5,3690.4,14.69738686]
[1753164004574,1e-08,3690.5,3690.4,14.81626098]
[1753164004770,1e-08,3690.5,3690.4,14.81526098]
[1753164006285,1e-08,3690.5,3690.4,14.81326098]
[1753164006591,0.01,3692.0,3691.9,2.70863241]
[1753164006796,0.01,3692.0,3691.9,9.35141522]
[1753164006954,0.01,3692.0,3691.9,5.14848753]
[1753164007153,0.01,3692.0,3691.9,9.47348753]
[1753164007898,0.3844,3691.5,3690.4,0.37764538]
[1753164008068,7.61705782,3691.1,3689.5,2.71039436]
[1753164008261,2.70959549,3690.6,3689.6,0.0271032]
[1753164008466,2.70959549,3690.6,3689.6,0.4476]
[1753164008669,2.17284722,3690.5,3689.6,0.4476]
[1753164008868,0.3844,3690.4,3689.1,0.4476]
[1753164009056,2.71010188,3689.9,3688.9,0.8058]
[1753164009255,17.20988022,3690.2,3688.9,0.8058]
[1753164009475,2.7103801,3689.6,3688.9,0.8058]
[1753164009993,2.71040174,3689.5,3688.9,0.8058]
[1753164010174,2.71040174,3689.5,3688.9,1.20224285]
[1753164010503,14.5,3690.2,3688.9,1.20224285]
[1753164010504,3.0,3690.1,3688.9,1.20224285]
[1753164010726,0.1371,3690.0,3688.4,5.6335]
[1753164010866,2.71082837,3689.0,3688.4,1.2235]
[1753164011205,2.71078381,3689.0,3688.4,1.2235]
[1753164011360,5.09755568,3690.0,3687.3,0.7759]
[1753164011361,2.71098218,3688.7,3687.3,0.7759]
[1753164011561,7.5461,3688.6,3686.6,0.7759]
[1753164011792,4.5461,3688.6,3686.7,1.23735684]
[1753164011980,2.8467886,3687.9,3687.3,0.1352]
[1753164012297,0.1352,3687.9,3687.3,0.1352]
[1753164012674,2.71164379,3687.8,3687.3,0.1352]
[1753164012870,0.1352,3687.9,3687.3,0.1352]
[1753164013597,2.71164379,3687.8,3687.3,0.1352]
[1753164013894,0.1352,3687.9,3687.3,0.1352]
[1753164014821,2.71208505,3687.2,3686.5,0.1352]
[1753164015113,2.7123371,3686.9,3686.5,0.1352]
[1753164015313,0.1352,3687.1,3686.5,0.1352]
[1753164015494,0.1352,3687.1,3686.6,0.55]
[1753164015495,2.71230849,3686.9,3686.6,0.55]
[1753164015684,2.71223831,3687.0,3686.6,0.55]
[1753164015885,2.847367,3687.1,3686.6,0.55]
[1753164016517,0.1352,3687.1,3686.6,0.55]
[1753164016716,0.1352,3687.1,3686.7,0.4476]
[1753164016887,4.5602,3687.4,3686.8,0.55]
[1753164017216,0.1352,3687.4,3686.8,0.4656]
[1753164017402,0.1352,3687.4,3686.9,0.55]
[1753164018013,4.421,3687.6,3686.3,0.55]
[1753164018320,0.1352,3687.0,3686.5,0.55]
[1753164018697,0.1352,3687.0,3686.6,0.4656]
[1753164018905,3.09575256,3688.2,3686.7,0.02712452]
[1753164019094,0.1352,3687.4,3687.0,2.71221216]
[1753164019293,0.1352,3687.4,3687.2,2.71207502]
[1753164019493,0.1352,3687.4,3687.1,3.17775013]
[1753164020018,0.1352,3687.4,3687.2,3.42788384]
[1753164020220,0.1352,3687.4,3687.3,2.96223089]
[1753164020416,4.416,3687.8,3687.3,3.52967675]
[1753164020621,4.5512,3687.8,3687.4,0.2502194]
[1753164020785,4.5512,3687.8,3687.5,0.2502194]
[1753164020987,4.5512,3687.8,3686.9,0.4656]
[1753164020988,2.71171733,3687.7,3687.6,0.2502194]
[1753164021726,7.12764594,3687.8,3687.6,0.25054447]
[1753164021882,7.12764594,3687.8,3687.7,0.25054447]
[1753164022283,0.1352,3687.7,3686.9,3.26229085]
[1753164022518,0.1352,3687.4,3687.0,2.96279007]
[1753164022718,0.1352,3687.4,3687.1,0.25060593]
[1753164022896,0.1352,3687.4,3687.2,0.25060593]
[1753164023239,13.71339577,3687.4,3687.3,0.25060593]
[1753164023387,13.85049577,3687.4,3687.3,0.25060593]
[1753164023583,6.23343795,3687.4,3687.3,0.25060593]
[1753164023886,10.50633795,3687.4,3687.3,0.25060593]
[1753164024640,4.7944,3687.4,3686.6,2.71250354]
[1753164024838,0.1352,3686.9,3686.7,3.55229691]
[1753164025005,4.407,3687.0,3686.9,2.71229972]
[1753164025210,4.407,3687.0,3686.9,3.42856905]
[1753164025424,0.3844,3688.0,3686.9,0.71626933]
[1753164025626,0.1352,3687.4,3687.0,2.96290149]
[1753164025827,0.1352,3687.4,3687.1,0.25066933]
[1753164026011,0.3844,3688.0,3687.2,0.71626933]
[1753164026208,0.1352,3687.7,3687.3,0.25066933]
[1753164026406,0.1352,3687.7,3687.4,2.96254845]
[1753164026658,0.1352,3687.7,3687.5,0.25066933]
[1753164026819,0.1352,3687.7,3687.6,0.25066933]
[1753164027148,6.504,3688.4,3687.6,1.05908027]
[1753164027348,6.504,3688.4,3687.7,0.25066933]
[1753164027349,0.1352,3688.0,3687.7,0.25066933]
[1753164027532,0.1352,3688.0,3687.8,0.25066933]
[1753164027728,0.1352,3688.0,3687.9,0.25066933]
[1753164029338,2.84669674,3688.0,3687.9,0.25066933]
[1753164031029,0.1352,3688.0,3687.9,0.25066933]
[1753164031435,2.84669674,3688.0,3687.9,0.25066933]
[1753164032554,0.1352,3688.0,3687.9,0.71626933]
[1753164032745,0.1352,3688.0,3687.9,3.4278396]
[1753164032946,0.1352,3688.0,3687.9,4.13387203]
[1753164033351,0.1352,3688.0,3687.9,4.13394824]
[1753164033549,0.3844,3689.3,3687.9,1.97237797]
[1753164033734,0.1352,3688.7,3688.5,2.71110542]
[1753164034058,0.3844,3689.3,3688.6,3.42736223]
[1753164034226,0.1352,3689.0,3688.7,0.25070655]
[1753164034427,0.1352,3689.0,3688.6,3.17665568]
[1753164034428,0.1352,3689.0,3688.8,0.25070655]
[1753164034791,0.1352,3689.0,3688.9,0.25070655]
[1753164035848,0.3844,3689.7,3688.9,0.25070655]
[1753164036048,3.5196,3688.9,3687.3,0.4656]
[1753164036251,0.1352,3687.8,3687.3,0.4656]
[1753164036433,7.25277484,3687.9,3687.2,0.1352]
[1753164036651,7.25277484,3687.9,3687.4,0.4656]
[1753164036834,4.405,3688.3,3687.5,1.2291]
[1753164037157,4.405,3688.5,3687.9,0.55]
[1753164037360,0.1352,3688.6,3687.9,3.26154208]
[1753164037568,4.405,3688.5,3687.9,3.72714208]
[1753164038059,4.405,3688.5,3687.9,3.72716676]
[1753164038283,4.405,3688.5,3687.9,0.4656]
[1753164038429,2.71142322,3688.1,3686.5,1.2853]
[1753164038631,3.09649763,3687.2,3686.5,0.001]
[1753164038962,4.429,3687.1,3686.5,0.001]
[1753164039129,2.71233022,3686.9,3686.5,0.001]
[1753164039331,7.14122767,3687.1,3686.5,0.001]
[1753164039662,4.429,3687.1,3686.5,0.4666]
[1753164039855,2.71231007,3686.9,3686.5,0.4666]
[1753164040350,2.71238539,3686.8,3686.5,0.4666]
[1753164040767,4.429,3687.1,3686.5,0.4666]
[1753164041136,4.426,3687.0,3686.5,0.4666]
[1753164041558,4.426,3687.0,3686.5,0.001]
[1753164041834,4.426,3687.0,3686.6,0.4656]
[1753164042067,4.422,3687.0,3686.7,0.4656]
[1753164042256,7.13424353,3687.0,3686.7,0.4656]
[1753164042449,2.71224353,3687.0,3686.7,0.4656]
[1753164042662,4.419,3687.1,3686.8,0.4656]
[1753164043173,0.3844,3688.2,3687.1,0.55]
[1753164043349,1.06479325,3689.3,3687.3,3.26201149]
[1753164043350,4.418,3688.3,3687.3,3.26201149]
[1753164043676,4.418,3688.3,3687.7,3.26165908]
[1753164043876,4.418,3688.3,3687.9,0.55]
[1753164044057,4.418,3688.3,3687.9,3.2615541]
[1753164044259,4.418,3688.3,3687.6,1.2756]
[1753164044453,4.418,3688.3,3687.7,3.26170105]
[1753164044634,4.423,3688.4,3687.7,0.55]
[1753164044832,4.423,3688.4,3687.9,0.55]
[1753164045055,0.002,3688.8,3688.1,2.71142047]
[1753164045371,0.002,3688.8,3688.2,2.71128524]
[1753164045570,0.002,3688.8,3688.3,2.71127619]
[1753164045938,0.002,3688.8,3688.4,0.4656]
[1753164046364,0.002,3688.8,3688.5,0.4656]
[1753164047035,0.3844,3687.8,3686.7,0.4656]
[1753164047268,2.71193434,3687.5,3686.7,0.4656]
[1753164047470,4.426,3687.7,3686.8,0.55]
[1753164047633,4.426,3687.7,3687.0,0.55]
[1753164047838,2.71149245,3688.1,3687.2,3.262027]
[1753164048068,4.433,3688.0,3687.3,0.25297261]
[1753164048253,2.71170089,3687.8,3687.4,0.25297261]
[1753164048446,2.84690089,3687.8,3687.5,0.25297261]
[1753164048671,2.84690089,3687.8,3687.6,0.25297261]
[1753164048973,2.84690089,3687.8,3687.7,0.25297261]
[1753164049158,4.5662,3687.8,3687.7,0.25297261]
[1753164049573,7.27974379,3687.8,3687.7,0.25297261]
[1753164049873,10.27974379,3687.8,3687.7,0.25297261]
[1753164050778,10.66414379,3687.8,3687.7,0.25297261]
[1753164058370,2.71238307,3686.8,3686.5,0.4308]
[1753164058675,4.415,3686.7,3686.6,0.25285981]
[1753164058881,2.71227151,3687.0,3686.7,0.4298]
[1753164059194,2.71227151,3687.0,3686.1,0.8321]
[1753164059195,10.50770573,3686.9,3686.8,0.25286072]
[1753164059650,10.71279068,3686.9,3686.8,0.25286072]
[1753164059842,10.84989068,3686.9,3686.8,0.25286072]
[1753164060045,10.71279068,3686.9,3686.8,0.25286072]
[1753164060255,10.32839068,3686.9,3686.8,0.25286072]
[1753164060697,10.12330573,3686.9,3686.8,0.25286072]
[1753164061255,3.1352,3686.8,3686.4,0.4298]
[1753164061560,4.408,3686.7,3686.0,0.4298]
[1753164061764,0.1352,3686.4,3686.0,0.4298]
[1753164061979,0.1352,3686.4,3686.1,0.4298]
[1753164062163,4.5412,3686.4,3685.7,0.565]
[1753164062369,0.1352,3686.1,3685.7,0.4298]
[1753164062886,0.1352,3686.1,3685.8,0.4298]
[1753164063087,0.1352,3686.1,3685.9,0.4298]
[1753164063492,0.1352,3686.1,3685.6,0.55]
[1753164063856,2.71294522,3686.1,3685.7,0.4298]
[1753164064073,0.1352,3685.9,3685.7,0.4298]
[1753164064291,0.1352,3685.9,3685.8,0.4298]
[1753164065051,0.1352,3686.1,3686.0,2.71296207]
[1753164065255,4.406,3686.4,3686.2,2.71278875]
[1753164065463,0.1352,3686.5,3686.3,1.2389]
[1753164065665,0.1352,3686.5,3686.4,3.14247361]
[1753164065865,0.3844,3687.3,3686.4,3.14247361]
[1753164065866,0.3844,3687.7,3686.6,2.71247872]
[1753164066159,0.1352,3686.8,3686.7,3.14225287]
[1753164066956,0.1352,3686.8,3686.3,0.02712747]
[1753164067157,2.71223216,3687.0,3686.0,0.8091]
[1753164067359,4.395,3686.9,3686.0,0.8091]
[1753164067556,7.10730696,3686.9,3686.1,2.71289438]
[1753164067757,4.395,3686.9,3686.0,0.8091]
[1753164068057,4.395,3686.9,3686.0,3.5220511]
[1753164068264,2.71252727,3686.6,3686.0,0.8091]
[1753164068458,2.71260343,3686.5,3686.0,0.8091]
[1753164068699,4.395,3686.9,3686.0,0.8091]
[1753164068902,2.71246705,3686.7,3686.0,0.8091]
[1753164069201,4.395,3686.9,3686.1,0.4298]
[1753164069379,7.10731938,3686.9,3686.1,0.4298]
[1753164069690,2.71244159,3686.8,3686.1,0.4298]
[1753164070369,2.71244159,3686.8,3686.1,3.1426873]
[1753164070577,2.71244159,3686.8,3686.1,0.4298]
[1753164070963,2.71244159,3686.8,3686.2,0.25284535]
[1753164071165,4.395,3686.9,3686.3,0.25284535]
[1753164071358,2.71237929,3686.8,3686.4,0.25284535]
[1753164071573,2.71237929,3686.8,3686.5,0.25284535]
[1753164071772,2.71237929,3686.8,3686.6,0.25284535]
[1753164071998,2.71237929,3686.8,3686.7,0.25284535]
[1753164072408,6.52487929,3686.8,3686.7,0.25284535]
[1753164072901,2.71284856,3686.2,3685.9,0.001]
[1753164073202,2.71284856,3686.2,3686.0,0.25281516]
[1753164073203,7.09884856,3686.2,3686.0,0.25281516]
[1753164073498,4.386,3686.2,3686.1,0.25281516]
[1753164074002,16.05115872,3686.2,3686.1,0.25281516]
[1753164074202,16.05115872,3686.2,3685.9,0.001]
[1753164074203,5.71296798,3686.0,3685.9,0.001]
[1753164074621,6.14106798,3686.0,3685.9,0.001]
[1753164075276,6.52546798,3686.0,3685.9,1e-08]
[1753164076504,2.71392514,3684.7,3684.6,0.001]
[1753164076679,6.78435204,3684.7,3684.6,0.001]
[1753164080475,7.22465204,3684.7,3684.6,0.001]
[1753164081073,10.22465204,3684.7,3684.6,0.001]
[1753164081673,10.22465204,3684.7,3683.2,0.001]
[1753164081674,2.7158415,3682.1,3681.4,0.001]
[1753164081877,2.71613656,3681.7,3681.4,0.001]
[1753164082186,2.71628412,3681.5,3681.4,0.001]
[1753164082399,16.21077326,3681.5,3681.4,0.001]
[1753164082603,17.00732205,3681.5,3681.4,0.001]
[1753164083777,12.69110171,3681.5,3681.4,0.001]
[1753164083973,12.25080171,3681.5,3681.4,0.001]
[1753164084414,16.76180171,3681.5,3681.4,0.001]
[1753164084585,20.79846378,3681.5,3681.4,0.001]
[1753164084913,24.92406378,3681.5,3681.4,0.001]
[1753164085676,24.92606378,3681.5,3681.4,0.001]
[1753164085923,22.21077966,3681.5,3681.4,0.001]
[1753164086129,14.5,3681.5,3681.4,0.001]
[1753164086317,21.72628412,3681.5,3681.4,0.001]
[1753164086495,14.5,3681.5,3681.4,0.001]
[1753164086702,19.008,3681.5,3681.4,0.001]
[1753164086926,21.72428412,3681.5,3681.4,0.001]
[1753164087789,21.72328412,3681.5,3681.4,0.001]
[1753164088021,24.72328412,3681.5,3681.4,0.001]
[1753164088490,25.16358412,3681.5,3681.4,0.001]
[1753164088687,24.72328412,3681.5,3681.4,0.001]
[1753164091089,24.71128412,3681.5,3681.4,0.001]
[1753164091291,4.34336331,3681.6,3681.4,0.4553]
[1753164091524,4.6302,3681.5,3681.4,0.4553]
[1753164091687,0.1352,3681.5,3681.4,0.001]
[1753164091888,18.84336331,3681.6,3681.4,1.3047]
[1753164092108,18.84336331,3681.6,3681.5,2.71628412]
[1753164092339,4.34336331,3681.6,3681.5,4.39432431]
[1753164092577,4.6312,3682.1,3681.6,0.55]
[1753164092775,4.6312,3682.1,3681.5,1.67804019]
[1753164092776,4.496,3682.1,3682.0,3.26591526]
[1753164092937,0.1352,3682.3,3682.1,0.55]
[1753164093144,4.495,3682.2,3682.1,3.7201415]
[1753164093491,18.995,3682.2,3682.1,0.4543]
[1753164094132,18.994,3682.2,3682.1,0.4543]
[1753164094332,4.494,3682.2,3682.1,0.4543]
[1753164095236,14.6352,3682.3,3682.1,0.4543]
[1753164095544,4.491,3682.2,3682.1,0.4543]
[1753164095735,4.491,3682.2,3682.0,0.7762]
[1753164096465,4.491,3682.2,3682.1,0.4543]
[1753164097250,4.491,3682.2,3682.1,3.7201415]
[1753164097456,4.491,3682.2,3682.1,4.16977565]
[1753164097657,0.1352,3682.3,3682.2,3.26576774]
[1753164097998,0.1352,3682.7,3682.3,3.2656745]
[1753164098144,4.6182,3682.7,3682.6,1.3311]
[1753164098350,0.1352,3682.7,3682.6,1.7854]
[1753164099170,0.1352,3682.7,3682.6,4.50087276]
[1753164099477,4.483,3682.9,3682.7,0.55]
[1753164099779,4.483,3682.9,3682.7,1.0043]
[1753164100082,4.483,3682.9,3682.8,0.4543]
[1753164100445,0.1352,3683.0,3682.9,3.26525156]
[1753164100650,4.475,3683.2,3682.9,1.0043]
[1753164100873,0.1352,3683.4,3683.1,0.55]
[1753164101084,4.475,3683.7,3683.2,3.49719567]
[1753164101392,4.475,3683.7,3683.6,3.26473558]
[1753164101694,14.52715121,3684.3,3683.7,0.55]
[1753164101892,0.3834,3685.1,3684.0,0.55]
[1753164101893,4.6082,3684.2,3684.0,0.55]
[1753164102073,0.1352,3684.2,3684.1,1.2365]
[1753164102453,0.1352,3684.2,3684.1,0.7822]
[1753164102688,0.1352,3684.2,3680.9,0.001]
[1753164102689,6.41978914,3684.2,3680.9,0.001]
[1753164102850,2.71546441,3682.7,3681.6,2.71616616]
[1753164103053,4.52815121,3682.6,3681.7,0.27161662]
[1753164103250,4.52815121,3682.6,3681.8,0.25147386]
[1753164103481,4.52815121,3682.6,3682.0,0.55]
[1753164103669,7.24363623,3682.6,3682.1,0.25147386]
[1753164103871,21.71648502,3682.6,3682.2,0.25147386]
[1753164104071,19.001,3682.6,3682.3,0.25147386]
[1753164104281,19.001,3682.6,3682.4,0.25147386]
[1753164104479,19.001,3682.6,3682.5,0.25147386]
[1753164104690,2.71637306,3681.4,3680.6,0.4553]
[1753164104926,2.71657201,3681.2,3680.6,0.4553]
[1753164105107,4.52315121,3681.3,3680.6,0.4553]
[1753164105108,0.02715121,3681.1,3680.6,0.4553]
[1753164105419,0.02715121,3681.2,3680.6,0.4553]
[1753164105621,0.02715121,3681.2,3680.7,0.55]
[1753164105798,0.02715121,3681.2,3680.6,1.2582]
[1753164105997,14.5,3681.9,3681.0,0.4543]
[1753164106201,4.55415121,3681.8,3681.1,0.55]
[1753164106524,2.71620161,3681.7,3681.1,0.55]
[1753164106713,4.526,3681.6,3681.3,0.55]
[1753164107027,4.526,3681.6,3681.3,3.26636153]
[1753164107323,4.526,3681.6,3681.4,0.4492]
[1753164107687,4.526,3681.6,3681.3,0.55]
[1753164107892,4.524,3681.7,3681.6,0.55]
[1753164108288,4.522,3681.8,3681.7,3.26613222]
[1753164108624,3.0,3681.7,3680.9,0.001]
[1753164108826,0.02715121,3681.6,3680.9,0.001]
[1753164109010,2.71636193,3681.4,3680.9,0.001]
[1753164109188,0.02715121,3681.3,3680.9,0.001]
[1753164109384,2.71651212,3681.2,3680.9,0.001]
[1753164109599,4.56015121,3681.1,3680.9,0.001]
[1753164109802,7.27673946,3681.1,3680.9,0.001]
[1753164110002,7.24958825,3681.1,3680.9,0.001]
[1753164110204,0.02715121,3681.0,3680.9,0.001]
[1753164110404,4.533,3681.1,3680.9,0.001]
[1753164111541,2.71665308,3681.0,3680.9,0.001]
[1753164112616,3.97715308,3681.0,3680.9,0.001]
[1753164114520,18.47715308,3681.0,3680.9,0.001]
[1753164115527,14.5,3681.0,3680.9,0.001]
[1753164115830,19.013,3681.0,3680.9,0.001]
[1753164116195,31.14379101,3681.0,3680.8,1e-08]
[1753164116496,6.94062688,3680.9,3680.8,1e-08]
[1753164116698,11.45862688,3680.9,3680.8,1e-08]
[1753164116897,11.45662688,3680.9,3680.8,1e-08]
[1753164117301,11.45562688,3680.9,3680.8,1e-08]
[1753164119130,11.45162688,3680.9,3680.8,1e-08]
[1753164119903,11.44862688,3680.9,3680.8,1e-08]
[1753164120136,6.94062688,3680.9,3680.8,1e-08]
[1753164120341,10.98582688,3680.9,3680.8,1e-08]
[1753164120543,10.98482688,3680.9,3680.8,1e-08]
[1753164121333,11.44662688,3680.9,3680.8,1e-08]